bitfinex/quotes_BTCUSD_20251012
["timestamp","ask_amount","ask_price","bid_price","bid_amount"]
[1760257148202,0.81091082,111890.0,111880.0,0.03486]
[1760257148409,0.82766731,111890.0,111880.0,0.05171]
[1760257148615,0.81091082,111890.0,111880.0,0.08429529]
[1760257148822,0.16229784,111890.0,111880.0,0.26305825]
[1760257149254,0.16229784,111890.0,111880.0,0.08429529]
[1760257150639,0.81091082,111890.0,111880.0,0.26305825]
[1760257152542,0.81091082,111890.0,111880.0,0.08429529]
[1760257153701,0.81149254,111890.0,111880.0,0.08429529]
[1760257154048,0.81149254,111890.0,111880.0,0.0394]
[1760257154049,0.83437254,111890.0,111880.0,0.0394]
[1760257154847,0.83437254,111890.0,111880.0,0.07426]
[1760257155234,0.83437254,111890.0,111880.0,0.0394]
[1760257156138,0.81149254,111890.0,111880.0,0.07426]
[1760257159501,0.81096954,111890.0,111880.0,0.07426]
[1760257160081,0.83384954,111890.0,111880.0,0.07000128]
[1760257162360,0.83384954,111890.0,111880.0,0.0394]
[1760257165220,0.83384954,111890.0,111880.0,0.01685]
[1760257165483,0.17876296,111880.0,111870.0,0.00095814]
[1760257165707,2.4630329,111880.0,111870.0,0.00095814]
[1760257165907,2.5032929,111880.0,111870.0,0.00095814]
[1760257166320,1.85520292,111880.0,111870.0,0.00095814]
[1760257166643,2.5032929,111880.0,111870.0,0.00095814]
[1760257170263,2.5334448,111880.0,111870.0,0.00095814]
[1760257170425,2.56034342,111880.0,111870.0,0.00095814]
[1760257170822,0.51879492,111860.0,111850.0,0.07162362]
[1760257171052,2.50190676,111860.0,111850.0,0.07162362]
[1760257171262,0.17884288,111830.0,111820.0,0.12333362]
[1760257171601,0.17884288,111830.0,111820.0,0.07162362]
[1760257171602,0.87588286,111830.0,111820.0,0.07162362]
[1760257171817,0.17885888,111820.0,111810.0,0.23058487]
[1760257172059,0.82694886,111820.0,111810.0,0.31507701]
[1760257172305,0.17885888,111820.0,111810.0,0.31507701]
[1760257172546,0.82694886,111820.0,111810.0,0.31557711]
[1760257172865,0.82694886,111820.0,111810.0,0.13670224]
[1760257173212,0.82694886,111820.0,111810.0,0.13770224]
[1760257173874,0.82694886,111820.0,111810.0,0.0757601]
[1760257174832,0.82694886,111820.0,111810.0,0.25463497]
[1760257175172,0.82694886,111820.0,111810.0,0.25563497]
[1760257181400,0.18753288,111830.0,111810.0,0.25563497]
[1760257181635,0.18753288,111830.0,111820.0,0.04814]
[1760257181636,0.82694124,111830.0,111820.0,0.04814]
[1760257181850,0.82694124,111830.0,111820.0,0.25680103]
[1760257182054,0.82694124,111830.0,111820.0,0.27973103]
[1760257186498,0.17885126,111830.0,111820.0,0.27973103]
[1760257186723,0.51882689,111840.0,111830.0,0.17884288]
[1760257186937,1.16691687,111840.0,111830.0,0.21899288]
[1760257187145,1.16691687,111840.0,111830.0,0.11575833]
[1760257187372,1.81500685,111840.0,111830.0,0.11575833]
[1760257188277,1.81500685,111840.0,111830.0,0.29460121]
[1760257188485,1.16691687,111840.0,111830.0,0.29460121]
[1760257188925,0.34,111840.0,111830.0,0.29460121]
[1760257189165,0.82690758,111850.0,111840.0,0.17882689]
[1760257189373,0.82690758,111850.0,111840.0,0.22182336]
[1760257189578,0.82690758,111850.0,111840.0,0.29347336]
[1760257194654,0.1788176,111850.0,111840.0,0.29347336]
[1760257195025,0.1788176,111850.0,111840.0,0.29521944]
[1760257195026,0.82690758,111850.0,111840.0,0.29521944]
[1760257195420,0.18773466,111860.0,111850.0,0.1788109]
[1760257195725,1.17582464,111860.0,111850.0,0.2773524]
[1760257196477,1.17582464,111860.0,111850.0,0.2778525]
[1760257198125,1.17582464,111860.0,111850.0,0.0990416]
[1760257198325,1.84494462,111860.0,111850.0,0.0446116]
[1760257198542,1.84494462,111860.0,111850.0,0.0005001]
[1760257198753,1.86183462,111860.0,111850.0,0.0005001]
[1760257198962,1.87859589,111860.0,111850.0,0.0005001]
[1760257199730,0.58241593,111860.0,111850.0,0.0005001]
[1760257199944,1.87859589,111860.0,111850.0,0.0005001]
[1760257200914,1.87859589,111860.0,111850.0,0.00166405]
[1760257204747,1.90549623,111860.0,111850.0,0.00166405]
[1760257209034,1.90549973,111860.0,111850.0,0.00166405]
[1760257210602,1.88860973,111860.0,111850.0,0.00166405]
[1760257211239,1.87184496,111860.0,111850.0,0.00166405]
[1760257211455,1.88901496,111860.0,111850.0,0.00166405]
[1760257212308,1.87184496,111860.0,111850.0,0.00166405]
[1760257212952,1.88901496,111860.0,111850.0,0.00166405]
[1760257218939,1.91916686,111860.0,111850.0,0.00166405]
[1760257219627,1.2716312,111860.0,111850.0,0.00166405]
[1760257220947,0.6229869,111860.0,111850.0,0.00166405]
[1760257221156,1.2716312,111860.0,111850.0,0.00166405]
[1760257223438,1.2544612,111860.0,111850.0,0.00166405]
[1760257223853,1.2716312,111860.0,111850.0,0.00166405]
[1760257224272,1.2716312,111860.0,111850.0,0.01166405]
[1760257225639,1.2544612,111860.0,111850.0,0.01166405]
[1760257225852,1.2544612,111860.0,111850.0,0.01762346]
[1760257226050,1.2716312,111860.0,111850.0,0.01762346]
[1760257226257,1.2716312,111860.0,111850.0,0.01166405]
[1760257235838,0.02690034,111860.0,111850.0,0.26065495]
[1760257236051,0.00869,111870.0,111860.0,0.17879492]
[1760257236251,0.82836536,111880.0,111860.0,0.24897492]
[1760257236455,0.82836536,111880.0,111870.0,0.04793]
[1760257236456,1.16836536,111880.0,111870.0,0.04793]
[1760257236754,1.16836536,111880.0,111870.0,0.07018]
[1760257236951,0.17972106,111880.0,111870.0,0.07018]
[1760257237165,0.82836536,111880.0,111870.0,0.07018]
[1760257237566,0.84909536,111880.0,111870.0,0.03808]
[1760257237971,0.20045106,111880.0,111870.0,0.07065]
[1760257238190,0.17972106,111880.0,111870.0,0.079298]
[1760257238397,0.17972106,111880.0,111870.0,0.25807693]
[1760257238598,0.0009581,111880.0,111870.0,0.25807693]
[1760257240452,0.0009581,111880.0,111870.0,0.90772123]
[1760257241070,0.0009581,111880.0,111870.0,0.25907693]
[1760257241272,0.0009581,111880.0,111870.0,0.90772123]
[1760257241685,0.0009581,111880.0,111870.0,0.90872123]
[1760257241867,0.18767003,111900.0,111880.0,0.17875062]
[1760257242074,0.18767003,111900.0,111890.0,0.04724]
[1760257242272,0.83631433,111900.0,111890.0,0.06874]
[1760257243451,0.8364643,111900.0,111890.0,0.06874]
[1760257243673,0.17874698,111890.0,111870.0,0.01583]
[1760257243881,0.17879492,111860.0,111850.0,0.09795362]
[1760257244087,0.85778922,111860.0,111850.0,0.08162362]
[1760257244298,0.87349922,111860.0,111850.0,0.08162362]
[1760257244499,0.87349922,111860.0,111850.0,0.01]
[1760257244701,0.85778922,111860.0,111850.0,0.01]
[1760257245195,0.85787853,111860.0,111850.0,0.01]
[1760257245395,0.85787853,111860.0,111850.0,0.053554]
[1760257245604,0.85787853,111860.0,111850.0,0.032054]
[1760257245813,1.19787853,111860.0,111850.0,0.053554]
[1760257248649,1.22477824,111860.0,111850.0,0.053554]
[1760257248864,1.22477824,111860.0,111850.0,0.05567618]
[1760257251803,1.21357273,111860.0,111850.0,0.03417618]
[1760257252060,1.21357273,111860.0,111850.0,0.05567618]
[1760257253025,0.56492843,111860.0,111850.0,0.05567618]
[1760257253186,1.21357273,111860.0,111850.0,0.05567618]
[1760257257934,1.21357273,111860.0,111850.0,0.08658618]
[1760257260756,1.21357273,111860.0,111850.0,0.05567618]
[1760257262245,1.21357273,111860.0,111850.0,0.08658618]
[1760257262866,1.21357273,111860.0,111850.0,0.05567618]
[1760257264599,1.18667302,111860.0,111850.0,0.05567618]
[1760257265029,1.18667302,111860.0,111850.0,0.08658618]
[1760257265259,1.18667302,111860.0,111850.0,0.05567618]
[1760257265693,1.16414302,111860.0,111850.0,0.08658618]
[1760257266391,1.17828302,111860.0,111850.0,0.08658618]
[1760257266590,1.17828302,111860.0,111850.0,0.05567618]
[1760257268211,0.52963872,111860.0,111850.0,0.04995218]
[1760257268420,1.17828302,111860.0,111850.0,0.04995218]
[1760257269758,1.16414302,111860.0,111850.0,0.08129218]
[1760257270544,1.17828302,111860.0,111850.0,0.08129218]
[1760257270757,0.52963872,111860.0,111850.0,0.08129218]
[1760257270974,1.17828302,111860.0,111850.0,0.10893707]
[1760257271389,1.17828302,111860.0,111850.0,0.07759707]
[1760257271983,0.84157922,111860.0,111850.0,0.06759707]
[1760257274077,0.84157922,111860.0,111850.0,0.09893707]
[1760257276141,0.17879492,111860.0,111850.0,0.09893707]
[1760257276331,0.82743922,111860.0,111850.0,0.09893707]
[1760257276914,0.82743922,111860.0,111850.0,0.07129218]
[1760257278152,0.84157922,111860.0,111850.0,0.07129218]
[1760257278543,0.82743922,111860.0,111850.0,0.07129218]
[1760257278965,0.17877893,111870.0,111850.0,0.07129218]
[1760257279311,0.17877893,111870.0,111860.0,0.04808]
[1760257279312,0.51877893,111870.0,111860.0,0.04808]
[1760257279518,0.84384462,111880.0,111860.0,0.27708513]
[1760257279720,0.17877893,111870.0,111860.0,0.27708513]
[1760257280349,0.1955911,111880.0,111860.0,0.27708513]
[1760257280567,0.00942172,111890.0,111880.0,0.17876296]
[1760257280779,0.00058172,111890.0,111880.0,0.24874296]
[1760257280987,0.00058172,111890.0,111880.0,0.33442905]
[1760257281207,0.64883524,111890.0,111880.0,0.33442905]
[1760257282181,0.00058172,111890.0,111880.0,0.33442905]
[1760257282384,0.64883524,111890.0,111880.0,0.33442905]
[1760257283444,0.00058172,111890.0,111880.0,0.33442905]
[1760257285027,0.64883524,111890.0,111880.0,0.33442905]
[1760257287041,0.00058172,111890.0,111880.0,0.33442905]
[1760257290359,0.00058172,111890.0,111880.0,0.98268257]
[1760257292100,0.00058172,111890.0,111880.0,0.98368257]
[1760257292476,0.00058172,111890.0,111880.0,0.33542905]
[1760257292696,0.00058172,111890.0,111880.0,0.98468257]
[1760257293963,0.00058172,111890.0,111880.0,0.33642905]
[1760257294156,0.00058172,111890.0,111880.0,0.98468257]
[1760257295453,0.00058172,111890.0,111880.0,0.33642905]
[1760257295880,0.00058172,111890.0,111880.0,0.98468257]
[1760257297960,0.00058172,111890.0,111880.0,0.33642905]
[1760257298171,0.00058172,111890.0,111880.0,0.98468257]
[1760257299371,0.00058172,111890.0,111880.0,0.33642905]
[1760257302031,0.00058172,111890.0,111880.0,0.98468257]
[1760257304626,0.00058172,111890.0,111880.0,0.33642905]
[1760257304854,0.00058172,111890.0,111880.0,0.98468257]
[1760257307142,0.00058172,111890.0,111880.0,1.63293609]
[1760257307726,0.00058172,111890.0,111880.0,1.97293609]
[1760257308073,0.00058172,111890.0,111880.0,1.99793608]
[1760257308432,0.00058172,111890.0,111880.0,2.02808798]
[1760257308436,1e-08,111890.0,111880.0,2.02808798]
[1760257308864,1e-08,111890.0,111880.0,2.02608798]
[1760257309242,1e-08,111890.0,111880.0,2.43008798]
[1760257310650,1e-08,111890.0,111880.0,1.10342904]
[1760257310851,1e-08,111890.0,111880.0,2.4669585]
[1760257316462,1e-08,111890.0,111880.0,0.15966609]
[1760257316676,1e-08,111890.0,111880.0,0.25274296]
[1760257317554,1e-08,111890.0,111880.0,0.89899648]
[1760257317804,1e-08,111890.0,111880.0,0.89999648]
[1760257318240,1e-08,111890.0,111880.0,0.89799648]
[1760257318452,1e-08,111890.0,111880.0,0.89899648]
[1760257318905,1e-08,111890.0,111880.0,0.98771582]
[1760257319580,1e-08,111890.0,111880.0,0.3394623]
[1760257322163,1e-08,111890.0,111880.0,0.6081623]
[1760257324103,0.17874699,111890.0,111880.0,0.6081623]
[1760257324294,0.82700051,111890.0,111880.0,0.6081623]
[1760257324522,0.64825353,111890.0,111880.0,0.6081623]
[1760257328558,0.82700051,111890.0,111880.0,0.6081623]
[1760257330155,0.64825353,111890.0,111880.0,0.6081623]
[1760257330975,1.47525403,111890.0,111880.0,0.07198]
[1760257331183,0.83758051,111890.0,111880.0,0.07167]
[1760257331613,0.83758051,111890.0,111880.0,0.04064]
[1760257331841,1.49244403,111890.0,111880.0,0.001]
[1760257332281,1.49244403,111890.0,111880.0,0.002]
[1760257332489,0.17876296,111880.0,111870.0,0.01769815]
[1760257332699,0.17876296,111880.0,111870.0,0.07404834]
[1760257332907,1.47527,111880.0,111870.0,0.09473834]
[1760257333566,0.17876296,111880.0,111870.0,0.09473834]
[1760257333781,0.82701648,111880.0,111870.0,0.09473834]
[1760257337855,0.82701648,111880.0,111870.0,0.27351727]
[1760257338222,0.17876296,111880.0,111870.0,0.27351727]
[1760257338423,0.82701648,111880.0,111870.0,0.09473834]
[1760257339386,0.82701648,111880.0,111870.0,0.27351727]
[1760257339798,0.82701648,111880.0,111870.0,0.09473834]
[1760257340819,1.47527,111880.0,111870.0,0.09473834]
[1760257341439,0.82701648,111880.0,111870.0,0.09473834]
[1760257341645,0.82699244,111880.0,111870.0,0.09473834]
[1760257342162,0.17876296,111880.0,111870.0,0.09473834]
[1760257342448,0.82699244,111880.0,111870.0,0.27351727]
[1760257344477,1e-08,111890.0,111880.0,0.17876296]
[1760257344677,1e-08,111890.0,111880.0,0.33430907]
[1760257345979,1e-08,111890.0,111880.0,0.33530907]
[1760257346580,1e-08,111890.0,111880.0,0.33630907]
[1760257350298,0.83755647,111890.0,111880.0,0.03784]
[1760257350506,0.84416647,111890.0,111880.0,0.002]
[1760257350928,1.21431837,111890.0,111880.0,0.002]
[1760257351137,1.21431837,111890.0,111880.0,0.001]
[1760257351340,1.21431837,111890.0,111870.0,0.00095815]
[1760257351341,0.17876296,111880.0,111870.0,0.00095815]
[1760257351562,0.82699244,111880.0,111870.0,0.00095815]
[1760257351754,0.83757244,111880.0,111870.0,0.00095815]
[1760257351983,0.84418244,111880.0,111870.0,0.00095815]
[1760257353412,1.18418244,111880.0,111870.0,0.00095815]
[1760257355030,1.21107836,111880.0,111870.0,0.00095815]
[1760257355980,0.55623888,111880.0,111870.0,0.02164815]
[1760257356313,1.20269836,111880.0,111870.0,0.03679815]
[1760257357147,1.20269836,111880.0,111870.0,0.01610815]
[1760257358244,1.17580244,111880.0,111870.0,0.00095815]
[1760257358952,1.17580244,111880.0,111870.0,0.02179815]
[1760257360249,1.17580244,111880.0,111870.0,0.00095815]
[1760257360466,1.18130244,111880.0,111870.0,0.00095815]
[1760257362247,1.17580244,111880.0,111870.0,0.00095815]
[1760257362965,0.94073269,111880.0,111870.0,0.00095815]
[1760257363174,0.83580244,111880.0,111870.0,0.00095815]
[1760257367358,0.18757296,111880.0,111870.0,0.02107815]
[1760257367559,0.83580244,111880.0,111870.0,0.00095815]
[1760257368679,0.20564291,111890.0,111870.0,0.02107815]
[1760257368903,0.82698352,111890.0,111880.0,0.19420296]
[1760257369109,0.82698352,111890.0,111880.0,0.24481296]
[1760257369110,0.83532352,111890.0,111880.0,0.24481296]
[1760257369341,0.83532352,111890.0,111880.0,0.03556]
[1760257369555,0.83532352,111890.0,111880.0,0.06605]
[1760257371622,0.82698352,111890.0,111880.0,0.24481296]
[1760257372017,0.82698352,111890.0,111880.0,0.06605]
[1760257373505,0.17876296,111880.0,111870.0,0.06839044]
[1760257373740,0.82699244,111880.0,111870.0,0.08851044]
[1760257373948,0.83533244,111880.0,111870.0,0.01639815]
[1760257374158,0.83533244,111880.0,111870.0,0.21529708]
[1760257374785,0.17875192,111890.0,111870.0,0.24678708]
[1760257374993,0.17875192,111890.0,111880.0,0.04593]
[1760257375200,0.17875192,111890.0,111880.0,0.07215271]
[1760257375405,0.17875192,111890.0,111880.0,0.09227271]
[1760257375948,0.17875192,111890.0,111880.0,0.06605]
[1760257376153,0.8269814,111890.0,111880.0,0.06605]
[1760257376380,0.8353214,111890.0,111880.0,0.06605]
[1760257377646,0.18709192,111890.0,111880.0,0.03556]
[1760257378459,0.17876296,111880.0,111870.0,0.04688815]
[1760257378671,0.17876296,111880.0,111870.0,0.06700815]
[1760257379288,0.17876296,111880.0,111870.0,0.24578708]
[1760257379515,0.17876296,111880.0,111870.0,0.33450642]
[1760257380064,0.18710296,111880.0,111870.0,0.03651815]
[1760257380287,0.84054244,111880.0,111870.0,0.00095815]
[1760257381992,0.87069434,111880.0,111870.0,0.00095815]
[1760257382619,0.22246486,111880.0,111870.0,0.00095815]
[1760257383271,0.87069434,111880.0,111870.0,0.00095815]
[1760257383901,0.86548434,111880.0,111870.0,0.00095815]
[1760257384513,0.86548434,111880.0,111870.0,0.89401656]
[1760257384514,0.17876296,111880.0,111870.0,0.89401656]
[1760257384712,0.17875192,111890.0,111880.0,0.17876296]
[1760257384918,0.17875192,111890.0,111880.0,0.06605]
[1760257385125,0.20890382,111890.0,111880.0,0.06605]
[1760257385536,0.20890382,111890.0,111880.0,0.24481296]
[1760257386788,0.03015191,111890.0,111880.0,0.27008992]
[1760257387000,1e-08,111890.0,111880.0,0.9183194]
[1760257389200,1e-08,111890.0,111880.0,0.9193194]
[1760257389340,1e-08,111890.0,111880.0,0.9203194]
[1760257391105,0.2088839,111900.0,111890.0,0.17874698]
[1760257391303,0.2088839,111900.0,111890.0,0.33576632]
[1760257392281,0.20901794,111900.0,111890.0,0.33576632]
[1760257396671,0.20959959,111900.0,111890.0,0.33576632]
[1760257397555,0.03086759,111900.0,111890.0,0.33576632]
[1760257397747,0.20959859,111900.0,111890.0,0.33576632]
[1760257404566,0.20959859,111900.0,111890.0,0.24704698]
[1760257406487,0.03086759,111900.0,111890.0,0.24704698]
[1760257406902,0.20959859,111900.0,111890.0,0.24704698]
[1760257407448,0.20959859,111900.0,111890.0,0.89491864]
[1760257410230,0.03086759,111900.0,111890.0,0.89491864]
[1760257410425,0.03086759,111900.0,111890.0,0.98363798]
[1760257411864,0.00071569,111900.0,111890.0,0.98363798]
[1760257412080,0.0002,111920.0,111910.0,0.17871503]
[1760257412290,0.03044121,111920.0,111910.0,0.86755796]
[1760257412558,0.03044121,111920.0,111910.0,0.91944796]
[1760257417721,0.03160423,111920.0,111910.0,0.91944796]
[1760257418136,0.00145233,111920.0,111910.0,0.91944796]
[1760257418803,0.00145233,111920.0,111910.0,1.25944796]
[1760257420392,0.00145233,111920.0,111910.0,1.26044796]
[1760257420596,0.00145233,111920.0,111910.0,1.26144796]
[1760257427748,0.83614306,111920.0,111910.0,0.03946]
[1760257428369,0.83614306,111920.0,111910.0,0.21817503]
[1760257428801,0.83614306,111920.0,111910.0,0.03946]
[1760257429009,0.1882714,111920.0,111910.0,0.03946]
[1760257429335,0.83614306,111920.0,111910.0,0.21817503]
[1760257429718,0.83614306,111920.0,111910.0,0.03946]
[1760257435087,0.83614306,111920.0,111910.0,0.21817503]
[1760257435939,0.83614306,111920.0,111910.0,0.03946]
[1760257438538,0.1882714,111920.0,111910.0,0.21817503]
[1760257438748,0.83614306,111920.0,111910.0,0.21817503]
[1760257439372,0.83614306,111920.0,111910.0,0.03946]
[1760257440034,0.83614306,111920.0,111910.0,0.03882634]
[1760257441186,0.1882714,111920.0,111910.0,0.03882634]
[1760257441397,0.83614306,111920.0,111910.0,0.24802137]
[1760257441619,0.1882714,111920.0,111910.0,0.33674071]
[1760257441830,0.83614306,111920.0,111910.0,0.15802568]
[1760257442037,0.83614306,111920.0,111910.0,0.33674071]
[1760257442453,0.1882714,111920.0,111910.0,0.33674071]
[1760257443097,0.1882714,111920.0,111910.0,0.24802137]
[1760257443510,0.1882714,111920.0,111910.0,0.06930634]
[1760257444240,0.1882714,111920.0,111910.0,0.24802137]
[1760257444962,0.1801514,111920.0,111910.0,0.24802137]
[1760257445168,0.1880114,111920.0,111910.0,0.21754137]
[1760257445381,0.1880114,111920.0,111910.0,0.24802137]
[1760257445577,0.21489493,111920.0,111910.0,0.24802137]
[1760257445808,0.20703493,111920.0,111910.0,0.24802137]
[1760257446152,0.20703493,111920.0,111910.0,0.06930634]
[1760257447054,0.20703493,111920.0,111910.0,0.24802137]
[1760257451311,0.23718683,111920.0,111910.0,0.24802137]
[1760257454381,0.23718683,111920.0,111910.0,0.33674071]
[1760257455648,0.23718683,111920.0,111910.0,0.24802137]
[1760257456063,0.24504683,111920.0,111910.0,0.18071503]
[1760257456479,0.24504683,111920.0,111910.0,0.20199503]
[1760257456690,0.24504683,111920.0,111910.0,0.24759503]
[1760257456869,0.24504683,111920.0,111910.0,0.24559503]
[1760257457337,0.23718683,111920.0,111910.0,0.24559503]
[1760257463423,0.24504683,111920.0,111910.0,0.06688]
[1760257463845,0.23718683,111920.0,111910.0,0.24559503]
[1760257464656,0.23718683,111920.0,111910.0,0.06688]
[1760257466596,0.24504683,111920.0,111910.0,0.06688]
[1760257467131,0.24504683,111920.0,111910.0,0.03596]
[1760257467352,0.83047803,111930.0,111910.0,0.12467934]
[1760257467566,0.17869907,111920.0,111910.0,0.12467934]
[1760257467775,0.178731,111900.0,111890.0,0.31698793]
[1760257467986,0.178731,111900.0,111890.0,0.33835724]
[1760257468216,0.178731,111900.0,111890.0,0.51710422]
[1760257469452,0.178731,111900.0,111890.0,0.51810422]
[1760257469665,0.178731,111900.0,111890.0,0.60682356]
[1760257470553,0.178731,111900.0,111890.0,0.33812356]
[1760257470753,0.178731,111900.0,111890.0,0.33912356]
[1760257473872,0.20560141,111910.0,111890.0,0.33912356]
[1760257474074,0.20560141,111910.0,111900.0,0.01468]
[1760257474281,0.20560141,111910.0,111900.0,0.06688]
[1760257474491,0.20560141,111910.0,111900.0,0.09144127]
[1760257477529,0.20560141,111910.0,111900.0,0.06688]
[1760257479362,0.20560141,111910.0,111900.0,0.06841935]
[1760257480085,0.20560141,111910.0,111900.0,0.24715035]
[1760257480480,0.02688638,111910.0,111900.0,0.24715035]
[1760257480684,0.20560141,111910.0,111900.0,0.24715035]
[1760257481040,0.02688638,111910.0,111900.0,0.33586969]
[1760257481909,0.02688638,111910.0,111900.0,0.98355132]
[1760257482143,0.34,111920.0,111910.0,0.17871503]
[1760257482352,0.34,111920.0,111910.0,0.89358666]
[1760257482558,0.36688272,111920.0,111910.0,0.89358666]
[1760257482966,0.36688272,111920.0,111910.0,0.2704663]
[1760257483203,0.54558179,111920.0,111910.0,0.2704663]
[1760257483929,0.36688272,111920.0,111910.0,0.2704663]
[1760257486000,0.54558179,111920.0,111910.0,0.2704663]
[1760257487707,0.54558179,111920.0,111910.0,0.27142399]
[1760257488038,0.54558179,111920.0,111910.0,0.24686272]
[1760257489270,0.36688272,111920.0,111910.0,0.24686272]
[1760257489472,0.36688272,111920.0,111910.0,0.89454435]
[1760257490395,0.54558179,111920.0,111910.0,0.89454435]
[1760257490601,0.54558179,111920.0,111910.0,0.24686272]
[1760257490602,0.36688272,111920.0,111910.0,0.24686272]
[1760257490811,0.36688272,111920.0,111910.0,0.33558206]
[1760257492648,0.00058141,111930.0,111920.0,0.17869907]
[1760257492885,0.00058141,111930.0,111920.0,0.8423307]
[1760257493138,0.00058141,111930.0,111920.0,0.8935707]
[1760257494003,0.00058141,111930.0,111920.0,0.8945707]
[1760257494217,0.00058141,111930.0,111920.0,0.91913197]
[1760257494623,0.00058141,111930.0,111920.0,0.92013197]
[1760257497475,0.00058141,111930.0,111920.0,0.27245034]
[1760257497675,0.00058141,111930.0,111920.0,0.92013197]
[1760257499181,0.00058141,111930.0,111920.0,1.32013197]
[1760257500553,0.00058141,111930.0,111920.0,0.67245034]
[1760257500766,0.00058141,111930.0,111920.0,0.27245034]
[1760257501020,0.00058141,111930.0,111920.0,0.92013197]
[1760257502730,0.00058141,111930.0,111920.0,0.91813197]
[1760257503098,0.00058141,111930.0,111920.0,0.92013197]
[1760257503482,0.00058141,111930.0,111920.0,1.5678136]
[1760257504059,0.00058141,111930.0,111920.0,0.92013197]
[1760257504468,0.00058141,111930.0,111920.0,0.91913197]
[1760257504694,0.00058141,111930.0,111920.0,0.92113197]
[1760257505095,0.00058141,111930.0,111920.0,0.92013197]
[1760257505546,0.00058141,111930.0,111920.0,0.92213197]
[1760257506174,0.00058141,111930.0,111920.0,1.32213197]
[1760257507135,0.00058141,111930.0,111920.0,1.9698136]
[1760257507588,0.00058141,111930.0,111920.0,1.32213197]
[1760257508663,0.00058141,111930.0,111920.0,1.9698136]
[1760257509263,0.00058141,111930.0,111920.0,2.2385136]
[1760257511835,0.00058141,111930.0,111920.0,1.59083197]
[1760257512369,0.00058141,111930.0,111920.0,2.2385136]
[1760257517965,0.00058141,111930.0,111920.0,1.59083197]
[1760257526312,0.83902035,111970.0,111950.0,0.17865118]
[1760257526501,0.83902035,111970.0,111960.0,0.17863522]
[1760257526693,0.83543741,111970.0,111960.0,0.21517522]
[1760257526901,0.83776212,111970.0,111960.0,0.24613522]
[1760257527306,0.00252471,111970.0,111960.0,0.24613522]
[1760257527520,0.82830803,111970.0,111960.0,0.24613522]
[1760257528354,1.16830803,111970.0,111960.0,0.24613522]
[1760257528913,0.5212333,111970.0,111960.0,0.24613522]
[1760257529119,1.16830803,111970.0,111960.0,0.24613522]
[1760257530693,0.98707473,111970.0,111960.0,0.24613522]
[1760257530876,1.165694,111970.0,111960.0,0.24613522]
[1760257534928,0.17863522,111960.0,111940.0,0.19407177]
[1760257535151,1.29414946,111950.0,111940.0,0.17866177]
[1760257535377,0.82572591,111950.0,111940.0,0.19979177]
[1760257536322,0.17866714,111940.0,111930.0,0.04637]
[1760257536536,0.5186831,111930.0,111910.0,0.3056444]
[1760257536757,0.8257738,111920.0,111910.0,0.37764659]
[1760257536978,0.64707473,111920.0,111910.0,0.37764659]
[1760257537217,0.8257738,111920.0,111910.0,0.30602297]
[1760257537639,0.8257738,111920.0,111910.0,0.25515078]
[1760257537842,0.8257738,111920.0,111910.0,0.2552401]
[1760257538366,0.8257738,111920.0,111910.0,0.2041501]
[1760257538593,0.8257738,111920.0,111910.0,0.2551501]
[1760257539087,0.64707473,111920.0,111910.0,0.2551501]
[1760257539519,0.8257738,111920.0,111910.0,0.2551501]
[1760257539961,0.8257738,111920.0,111910.0,0.2561501]
[1760257540656,0.5186831,111930.0,111910.0,0.2561501]
[1760257540885,0.34,111930.0,111920.0,0.24148897]
[1760257541114,0.83467522,111940.0,111920.0,0.89538659]
[1760257541319,1.17467522,111940.0,111930.0,0.04492]
[1760257541741,1.82174995,111940.0,111930.0,0.06633]
[1760257541946,0.1786831,111930.0,111920.0,0.04492]
[1760257542179,0.82575783,111930.0,111920.0,0.10332784]
[1760257542818,0.82575783,111930.0,111920.0,0.28202691]
[1760257543467,1.16575783,111930.0,111920.0,0.03597]
[1760257543685,1.16575783,111930.0,111910.0,0.2332501]
[1760257543686,0.51869907,111920.0,111910.0,8.932e-05]
[1760257543898,1.84300043,111920.0,111910.0,8.932e-05]
[1760257544350,0.51869907,111920.0,111910.0,0.02072932]
[1760257544598,0.36688692,111920.0,111910.0,0.24404435]
[1760257544823,0.34,111920.0,111910.0,0.97983842]
[1760257545066,0.34,111930.0,111920.0,0.17868549]
[1760257545344,0.17866714,111940.0,111930.0,0.1931831]
[1760257545566,0.98707473,111940.0,111930.0,0.2439231]
[1760257545783,0.86153698,111950.0,111930.0,0.2439231]
[1760257545989,0.98707473,111940.0,111930.0,0.26848437]
[1760257546198,0.34,111940.0,111930.0,0.26848437]
[1760257546643,0.51866714,111940.0,111930.0,0.27118559]
[1760257547063,0.34,111940.0,111930.0,0.27118559]
[1760257547271,0.51866714,111940.0,111930.0,0.27118559]
[1760257548512,1.16574187,111940.0,111930.0,0.27118559]
[1760257549982,0.51866714,111940.0,111930.0,0.27118559]
[1760257550186,0.98707473,111940.0,111930.0,0.27118559]
[1760257550367,0.34,111940.0,111930.0,0.27118559]
[1760257550579,0.51866714,111940.0,111930.0,0.27118559]
[1760257550877,1.16574187,111940.0,111930.0,0.27118559]
[1760257552061,1.16574187,111940.0,111930.0,0.09250249]
[1760257552276,0.36687852,111950.0,111930.0,0.93712863]
[1760257552484,0.34,111950.0,111940.0,0.22326714]
[1760257552692,0.34,111950.0,111940.0,1.60825569]
[1760257552898,0.83463233,111970.0,111950.0,0.17865118]
[1760257553109,0.83463233,111970.0,111960.0,0.03514]
[1760257553319,0.83463233,111970.0,111960.0,0.24387522]
[1760257553521,1.17463233,111970.0,111960.0,0.06524]
[1760257554493,1.17463233,111970.0,111960.0,0.03514]
[1760257554706,0.51862664,111970.0,111960.0,0.03514]
[1760257554908,1.16570137,111970.0,111960.0,0.03514]
[1760257555094,1.17463233,111970.0,111960.0,0.03514]
[1760257557293,1.17463233,111970.0,111960.0,0.08980127]
[1760257558231,1.17463233,111970.0,111960.0,0.03514]
[1760257558453,1.82170706,111970.0,111960.0,0.00095712]
[1760257558571,1.84858135,111970.0,111960.0,0.00095712]
[1760257560480,0.55443189,111970.0,111960.0,0.00095712]
[1760257560697,1.84858135,111970.0,111960.0,0.00095712]
[1760257564905,1.84858135,111970.0,111960.0,0.02159712]
[1760257565119,1.84858135,111970.0,111960.0,0.07657283]
[1760257565541,1.20150662,111970.0,111960.0,0.07657283]
[1760257565775,1.17463233,111970.0,111960.0,0.06619712]
[1760257567254,1.17463233,111970.0,111960.0,0.24483234]
[1760257571779,0.5275576,111970.0,111960.0,0.24483234]
[1760257571959,1.17463233,111970.0,111960.0,0.24483234]
[1760257572176,0.000781,111980.0,111970.0,0.17861927]
[1760257572369,0.000781,111980.0,111970.0,0.24431927]
[1760257573175,0.000781,111980.0,111970.0,0.891394]
[1760257573391,0.000781,111980.0,111970.0,0.892394]
[1760257573592,0.000781,111980.0,111970.0,0.31204565]
[1760257573794,0.000781,111980.0,111970.0,0.95912038]
[1760257573941,0.000781,111980.0,111970.0,0.95712038]
[1760257574151,0.000781,111980.0,111970.0,0.95812038]